Cogmind - Beta 16.1 @@@ ROGUE MODE // 2026.04.11 @ 19:21:58 Player: beans Result: Destroyed by G-47 Trooper with Particle Gun Performance ------------- Evolutions (2) 1000 Regions Visited (7) 1400 Robots Destroyed (34) 170 Value Destroyed (1268) 1268 Prototype IDs (25) 500 Alien Tech Used (0) 0 Bonus (766) 766 TOTAL SCORE: 5104 Bonus ------- High Alert Combat Kills 34 Follower Combat Kills 248 Entered Garrisons 200 Aligned with FarCom 300 Friendly Fire -16 Cogmind --------- Core Integrity 0/550 Matter 5/300 Energy 100/100 System Corruption 1% Temperature Cool (9) Movement Core (200) Ox3 Location -8/Materials Parts ------- > --- POWER (1) -------- (None) > --- PROPULSION (4) --- (None) > --- UTILITY (4) ------ Medium Storage Unit Advanced Visual Processing Unit > --- WEAPON (2) ------- (None) > --- INVENTORY (10) --- Improved Flight Unit Improved Flight Unit Improved Flight Unit Authchip [R/Combat] Authchip [R/Combat] Authchip [R/Combat] YOLO Cannon Bore Cannon Peak State ------------ > --- POWER ------------ Light Angular Momentum Engine > --- PROPULSION ------- Carbon-fiber Leg Carbon-fiber Leg Makeshift Leg Improved Flight Unit > --- UTILITY ---------- Cooling System Cooling System Medium Storage Unit Advanced Visual Processing Unit > --- WEAPON ----------- Beam Rifle Advanced Beam Rifle > --- INVENTORY -------- Light Nuclear Core Cesium-ion Thruster YOLO Cannon Flak Cannon Flak Cannon Rocket Launcher [Rating: 35] Favorites ----------- Power Fission Core Engine Light Angular Momentum Engine Power Core Fission Core Propulsion Carbon-fiber Leg Treads Light Treads Leg Carbon-fiber Leg Flight Unit Cesium-ion Thruster Utility Advanced Visual Processing Unit Device Cooling System Storage Medium Storage Unit Processor Advanced Visual Processing Unit Weapon Flak Cannon Energy Gun Advanced Beam Rifle Energy Cannon YOLO Cannon Ballistic Gun Light Assault Rifle Ballistic Cannon Flak Cannon Launcher Missile Launcher Build | -11 -10 -10 -10 -9 -8 -8 -8 ------- Run | Yrd Mat Min Exi Min Mat Gar Mat Slots Evolved 4 | . . . . . 4 . . Power . | . . . . . . . . Propulsion 2 | . . . . . 2 . . Utility 2 | . . . . . 2 . . Weapon . | . . . . . . . . Parts Attached 24 | 2 . . . 1 16 4 1 Power 2 | . . . . . 1 1 . Engine 1 | . . . . . 1 . . Core 1 | . . . . . . 1 . Reactor . | . . . . . . . . Propulsion 6 | . . . . 1 4 . 1 Treads 1 | . . . . 1 . . . Leg 3 | . . . . . 3 . . Wheel . | . . . . . . . . Hover . | . . . . . . . . Flight 2 | . . . . . 1 . 1 Utility 4 | . . . . . 4 . . Device 2 | . . . . . 2 . . Storage 1 | . . . . . 1 . . Processor 1 | . . . . . 1 . . Hackware . | . . . . . . . . Protection . | . . . . . . . . Artifact . | . . . . . . . . Weapon 12 | 2 . . . . 7 3 . Energy Gun 2 | . . . . . 2 . . Energy Cannon 1 | . . . . . . 1 . Ballistic Gun 3 | 2 . . . . . 1 . Ballistic Cannon 4 | . . . . . 4 . . Launcher 2 | . . . . . 1 1 . Special Weapon . | . . . . . . . . Impact Weapon . | . . . . . . . . Slashing Weapon . | . . . . . . . . Piercing Weapon . | . . . . . . . . Special Melee Weapon . | . . . . . . . . Unidentified Prototypes 2 | . . . . . 2 . . Parts Lost 12 | . . . . . 3 6 3 Power 1 | . . . . . . 1 . Propulsion 4 | . . . . . 1 1 2 Utility 2 | . . . . . . 2 . Weapon 5 | . . . . . 2 2 1 Highest Loss Streak 4 | . . . . . 2 4 3 To Critical Strikes . | . . . . . . . . Average Backups 5 | . 1 2 2 3 4 8 8 Power . | . . . . . . . . Propulsion 1 | . . . . . . 4 3 Utility 1 | . 1 2 2 2 . 2 3 Weapon 1 | . . . . 1 2 2 2 Tool/Special . | . . . . . . . . Unused Backups 7 | . . . . . . 1 6 Power 1 | . . . . . . 1 . Propulsion 2 | . . . . . . . 2 Utility 3 | . . . . . . . 3 Weapon 1 | . . . . . . . 1 Tool/Special . | . . . . . . . . Average Slot Usage (%) 48 | . 28 28 28 33 56 59 43 Engine 1 | . . . . . 2 4 . Core 1 | . . . . . . . 8 Treads 1 | . . . . 5 4 . . Leg 8 | . . . . . 10 13 8 Device 6 | . . . . . 11 9 . Storage 5 | . . . . . 2 9 9 Processor 6 | . . . . . 7 9 9 Energy Gun 1 | . . . . . 3 2 . Ballistic Gun 6 | . 28 28 28 28 2 . . Ballistic Cannon 6 | . . . . . 11 8 . Launcher 2 | . . . . . . 2 8 Peak Build Rating 35 | 2 2 2 4 5 35 30 19 Average Rating 15 | 1 2 2 2 4 18 21 18 On Entrance 7 | . 2 2 2 4 5 29 19 Avg Prop Armor Cover (%) . | . . . . . . . . Naked Turns . | . . . . . . . . Heaviest Build 35 | 3 3 3 3 3 35 35 26 Greatest Support 50 | 3 3 3 3 20 50 30 15 Greatest Overweight (x) 3 | . . . . . . 1 3 Average Overweight (x) . | . . . . . . . 1 Largest Inventory Capacity 10 | 5 5 5 5 5 10 10 10 Average Capacity 7 | 5 5 5 5 5 6 10 10 Most Carried 10 | 2 2 2 4 5 10 10 10 Average Carried 6 | . 1 2 2 4 5 9 9 Final Capacity 10 | 5 5 5 5 5 10 10 10 Final Carried 10 | . 2 2 4 5 10 10 9 Class Distribution -------------------- 88% | Mutant 11% | Scavenger-Mutant Dominant Class ---------------- Mutant | -10/Materials Mutant | -10/Mines Mutant | -10/Exiles Mutant | -9/Mines Mutant | -8/Materials Mutant | -8/Garrison Mutant | -8/Materials Resources | -11 -10 -10 -10 -9 -8 -8 -8 ----------- Run | Yrd Mat Min Exi Min Mat Gar Mat Matter Collected 922 | 220 40 . . 26 584 52 . Remotely . | . . . . . . . . Salvage Created 947 | . 101 . . 22 675 149 . Parts 56 | . 9 . . 3 37 7 . Haulers Intercepted 2 | . . . . . 2 . . Recyclers Shooed 1 | . 1 . . . . . . Parts Field Recycled . | . . . . . . . . Retrieved Matter . | . . . . . . . . Parts Self-Destructed . | . . . . . . . . Prevented . | . . . . . . . . Parts Restored . | . . . . . . . . Kills | -11 -10 -10 -10 -9 -8 -8 -8 ------- Run | Yrd Mat Min Exi Min Mat Gar Mat Combat Hostiles Destroyed 27 | . 2 . . . 16 9 . Guns 7 | . 2 . . . 5 . . Cannons 12 | . . . . . 9 3 . AOE 8 | . . . . . 2 6 . Classes Destroyed 9 | . 2 . . 1 6 . . Builder 2 | . 1 . . . 1 . . Tunneler 1 | . . . . 1 . . . Hauler 2 | . . . . . 2 . . Recycler 2 | . . . . . 2 . . Swarmer 6 | . . . . . 4 2 . Grunt 14 | . 2 . . . 6 6 . Duelist 1 | . . . . . 1 . . Sentry 5 | . . . . . 4 1 . Hunter 1 | . . . . . 1 . . Best Kill Streak 4 | . 2 . . 1 4 4 . Combat Bots Only 4 | . 2 . . . 4 4 . Max Kills in Single Turn 2 | . 1 . . 1 2 2 . Gunslinging . | . . . . . . . . Exploded 2 | . . . . . 2 2 . Melee . | . . . . . . . . Uniques/NPCs Destroyed . | . . . . . . . . Combat | -11 -10 -10 -10 -9 -8 -8 -8 -------- Run | Yrd Mat Min Exi Min Mat Gar Mat Hostile Shots Fired 162 | . 19 . . . 78 46 19 Missed 47 | . 6 . . . 25 9 7 Hits 115 | . 13 . . . 53 37 12 Melee 1 | . . . . . 1 . . Projectile 114 | . 13 . . . 52 37 12 Critical Strikes 5 | . . . . . 2 1 2 Damage Taken 1838 | . 176 . . . 919 555 188 Core 611 | . 60 . . . 251 224 76 Absorbed by Shields . | . . . . . . . . Core Remaining (%) 88 | 100 . . . 76 . . . Volleys Fired 96 | . 13 . . 3 55 25 . Largest 2 | . 2 . . 2 2 2 . Hottest 117 | . 40 . . 40 117 100 . Shots Fired 170 | . 26 . . 6 103 35 . Gun 70 | . 26 . . 6 37 1 . Cannon 86 | . . . . . 63 23 . Launcher 14 | . . . . . 3 11 . Special . | . . . . . . . . Kinetic 125 | . 26 . . 6 70 23 . Thermal 31 | . . . . . 30 1 . Explosive 14 | . . . . . 3 11 . Electromagnetic . | . . . . . . . . Robot Hit Streak 14 | . 7 . . 3 8 14 . Robot Miss Streak 20 | . 2 . . 1 20 7 . Penetration Max . | . . . . . . . . Secondary Targets 3 | . 1 . . . 2 . . Max Gunslinging Chain 1 | . 1 . . . 1 . . Shots Hit Robots 116 | . 17 . . 4 74 21 . Core Hits 101 | . 8 . . 3 66 24 . Critical Kills . | . . . . . . . . Critical Parts Destroyed 1 | . 1 . . . . . . Critical Strikes 3 | . 1 . . . 2 . . Burn 2 | . . . . . 2 . . Destroy 1 | . 1 . . . . . . Melee Attacks . | . . . . . . . . Impact . | . . . . . . . . Slashing . | . . . . . . . . Piercing . | . . . . . . . . Sneak Attacks . | . . . . . . . . Combat Hostiles . | . . . . . . . . Follow-up Attacks . | . . . . . . . . Damage Inflicted 2724 | . 185 . . 37 1499 1003 . Guns 613 | . 184 . . 37 382 10 . Cannons 1190 | . . . . . 920 270 . Explosions 920 | . . . . . 197 723 . Melee . | . . . . . . . . Ramming 1 | . 1 . . . . . . Kinetic 1480 | . 184 . . 37 979 280 . Thermal 323 | . . . . . 323 . . Explosive 920 | . . . . . 197 723 . Electromagnetic . | . . . . . . . . Impact . | . . . . . . . . Slashing . | . . . . . . . . Piercing . | . . . . . . . . Highest Corruption 1 | . . . . . 1 1 1 Average Corruption 1 | . . . . . 1 1 1 Corruption Purged . | . . . . . . . . Corruption Blocked . | . . . . . . . . Effects 11 | . . . . . 3 4 4 Message Errors 1 | . . . . . . 1 . Matter Fused 3 | . . . . . 1 2 . Heat Flow Errors 1 | . . . . . . . 1 Energy Discharges 3 | . . . . . . 1 2 Data Loss (minor) 1 | . . . . . . . 1 Data Loss (major) 1 | . . . . . 1 . . Weapon Failures 1 | . . . . . 1 . . Overload Shots . | . . . . . . . . Overflow Damage 10 | . . . . . . 10 . Projectiles . | . . . . . . . . Explosions 10 | . . . . . . 10 . Melee . | . . . . . . . . Knockbacks 23 | . . . . . 21 2 . Impact . | . . . . . . . . Kinetic 18 | . . . . . 16 2 . Secondary 5 | . . . . . 5 . . Self-Inflicted Damage 116 | . . . . . 68 48 . Shots 4 | . . . . . 2 2 . Rammed 1 | . 1 . . . . . . Targets Rammed 1 | . 1 . . . . . . Kicked . | . . . . . . . . Crushed . | . . . . . . . . Highest Temperature 206 | . 4 . . . 6 23 206 Average Temperature 31 | . 3 . . . 2 10 89 Received Heat Transfer 813 | . 102 . . . 315 252 144 Siege Activations . | . . . . . . . . Martial Activations . | . . . . . . . . Shielding Activations . | . . . . . . . . Robots Disrupted . | . . . . . . . . Combat Hostiles . | . . . . . . . . Robots Corrupted . | . . . . . . . . Combat Hostiles . | . . . . . . . . Parts Fried . | . . . . . . . . Impact Corruptions . | . . . . . . . . Robots Melted 1 | . . . . . 1 . . Combat Hostiles . | . . . . . . . . Parts Melted 3 | . . . . . 3 . . Heat Transferred 851 | . . . . . 851 . . Parts Sabotaged . | . . . . . . . . Parts Stolen . | . . . . . . . . Parts Stripped . | . . . . . . . . Power Chain Reactions . | . . . . . . . . Alert | -11 -10 -10 -10 -9 -8 -8 -8 ------- Run | Yrd Mat Min Exi Min Mat Gar Mat Maximum Alert Level 2 | . . . . . 1 2 1 Low Security (%) 51 | 100 100 100 . 100 50 . 75 Level 1 42 | . . . . . 49 76 24 Level 2 5 | . . . . . . 23 . Level 3 . | . . . . . . . . Level 4 . | . . . . . . . . Level 5 . | . . . . . . . . High Security . | . . . . . . . . Max Security . | . . . . . . . . Peak Influence 513 | . 45 13 . 5 370 513 249 Initial 249 | . . 13 . . . 240 249 Average 179 | . 14 13 . . 169 328 150 Influence Increases 1191 | . 70 . . 5 758 353 5 Destroy 0b10 Robot/C 700 | . 40 . . . 480 180 . Destroy 0b10 Robot/NC 40 | . 5 . . 5 30 . . Destroy Leader 156 | . 10 . . . 136 10 . Allied During Kill 91 | . . . . . 91 . . Successful Hack 12 | . . . . . . 7 5 Anti-Garrison Action 50 | . . . . . . 50 . Destroy Structure 127 | . . . . . 21 106 . Partial Spotted 15 | . 15 . . . . . . Influence Decreases 1165 | . 35 22 13 5 388 210 492 Entered New Map 429 | . . 22 13 . . 130 264 Time Decay 536 | . 35 . . 5 298 . 198 Lost Part 120 | . . . . . 30 60 30 Lost Ally 80 | . . . . . 60 20 . Squads Dispatched 7 | . . . . . 6 . 1 Investigation 1 | . . . . . . . 1 Extermination . | . . . . . . . . Reinforcement 2 | . . . . . 2 . . Assault . | . . . . . . . . Garrison 4 | . . . . . 4 . . Intercept . | . . . . . . . . Searches Triggered . | . . . . . . . . Construction Impeded 1 | . . . . . 1 . . Haulers Reinforced . | . . . . . . . . Active Scanning Responses . | . . . . . . . . Cargo Convoy Interrupts . | . . . . . . . . Stealth | -11 -10 -10 -10 -9 -8 -8 -8 --------- Run | Yrd Mat Min Exi Min Mat Gar Mat Distress Signals 7 | . . . . . 7 . . Communications Jammed . | . . . . . . . . Distress Signals . | . . . . . . . . Times Spotted 49 | . 6 . . . 31 10 2 Peak Tracking Total 5 | . 4 . . . 5 5 2 Tactical Retreats . | . . . . . . . . Traps | -11 -10 -10 -10 -9 -8 -8 -8 ------- Run | Yrd Mat Min Exi Min Mat Gar Mat Traps Triggered 3 | . . . . . 2 1 . Indirectly . | . . . . . . . . Trap Hack Attempts . | . . . . . . . . Triggered . | . . . . . . . . Disarmed . | . . . . . . . . Reprogrammed . | . . . . . . . . Reused . | . . . . . . . . Traps Extracted . | . . . . . . . . Installed . | . . . . . . . . Triggered . | . . . . . . . . Machines | -11 -10 -10 -10 -9 -8 -8 -8 ---------- Run | Yrd Mat Min Exi Min Mat Gar Mat Machines Disabled 2 | . . . . . . 2 . Max in Single Turn 2 | . . . . . . 2 . Phase Generator 1 | . . . . . . 1 . Machines Repaired . | . . . . . . . . Machines Dismantled . | . . . . . . . . Machines Sabotaged . | . . . . . . . . Overloaded Fab Kills . | . . . . . . . . Hacking | -11 -10 -10 -10 -9 -8 -8 -8 --------- Run | Yrd Mat Min Exi Min Mat Gar Mat Machines Accessed 6 | . . . 1 . 1 2 2 Terminals 3 | . . . . . . 2 1 Fabricators . | . . . . . . . . Repair Stations . | . . . . . . . . Recycling Units 1 | . . . . . . . 1 Scanalyzers . | . . . . . . . . Garrison Access 1 | . . . . . 1 . . Total Hacks 9 | . . . 1 . 1 2 5 Successful 8 | . . . 1 . 1 2 4 Failed 1 | . . . . . . . 1 Catastrophic . | . . . . . . . . Database Lockouts . | . . . . . . . . Manual 3 | . . . 1 . . . 2 Terminals 4 | . . . . . . 2 2 Fabricators . | . . . . . . . . Repair Stations . | . . . . . . . . Recycling Units 3 | . . . . . . . 3 Scanalyzers . | . . . . . . . . Garrison Access 1 | . . . . . 1 . . Terminal Hacks 3 | . . . 1 . . 2 . Open Door 1 | . . . . . . 1 . Emergency Access Points 1 | . . . . . . 1 . Proto ID Catalog 1 | . . . 1 . . . . Fabricator Hacks . | . . . . . . . . Repair Station Hacks . | . . . . . . . . Recycling Unit Hacks 2 | . . . . . . . 2 Process 1 | . . . . . . . 1 Retrieve Matter 1 | . . . . . . . 1 Scanalyzer . | . . . . . . . . Garrison Access Hacks 1 | . . . . . 1 . . Unlock Access 1 | . . . . . 1 . . Unauthorized Hacks 2 | . . . . . . . 2 Terminals 2 | . . . . . . . 2 Botnet 1 | . . . . . . . 1 Sabotage 1 | . . . . . . . 1 Fabricators . | . . . . . . . . Repair Stations . | . . . . . . . . Recycling Units . | . . . . . . . . Scanalyzers . | . . . . . . . . Garrison Access . | . . . . . . . . Data Cores Recovered . | . . . . . . . . Used . | . . . . . . . . Hacking Detections 3 | . . . . . 1 1 1 Full Trace Events . | . . . . . . . . Feedback Events . | . . . . . . . . Feedback Blocked . | . . . . . . . . Robot Schematics Acquired . | . . . . . . . . Robots Built . | . . . . . . . . Authchips . | . . . . . . . . Time . | . . . . . . . . Total Robot Build Rating . | . . . . . . . . Part Schematics Acquired . | . . . . . . . . Parts Built . | . . . . . . . . Authchips . | . . . . . . . . Time . | . . . . . . . . Total Part Build Rating . | . . . . . . . . Part Studies Acquired . | . . . . . . . . Parts Repaired . | . . . . . . . . Time . | . . . . . . . . Parts Recycled . | . . . . . . . . Recycled Matter . | . . . . . . . . Retrieved Matter . | . . . . . . . . Retrieved Components . | . . . . . . . . Parts Scanalyzed . | . . . . . . . . Part Schematics Acquired . | . . . . . . . . Parts Damaged . | . . . . . . . . Bothacking | -11 -10 -10 -10 -9 -8 -8 -8 ------------ Run | Yrd Mat Min Exi Min Mat Gar Mat Used RIF Installer . | . . . . . . . . Robots Hacked . | . . . . . . . . Non-combat . | . . . . . . . . Combat . | . . . . . . . . Robot Hacks Applied . | . . . . . . . . Relay Couplers Released . | . . . . . . . . Fabnet Peak Effective % . | . . . . . . . . Robots Rewired . | . . . . . . . . Allies Hacked . | . . . . . . . . Hacks Repelled . | . . . . . . . . Allies | -11 -10 -10 -10 -9 -8 -8 -8 -------- Run | Yrd Mat Min Exi Min Mat Gar Mat Total Allies 6 | . . . . 5 . 1 . Largest Group 5 | . . . . 5 5 1 . Highest-Rated Group 78 | . . . . 78 78 39 . Highest-Rated Ally 39 | . . . . 31 31 39 . Initial Warlord ECA Mod 1 | . . . . . . . 1 Total Orders . | . . . . . . . . Ally Attacks 71 | . . . . . 67 4 . Total Damage 761 | . . . . . 719 42 . Kills 9 | . . . . . 9 . . Allies Corrupted . | . . . . . . . . Allies Melted . | . . . . . . . . Intel | -11 -10 -10 -10 -9 -8 -8 -8 ------- Run | Yrd Mat Min Exi Min Mat Gar Mat Active Infowar (turns) 1465 | . . . . . 578 471 416 Optics 1465 | . . . . . 578 471 416 Robot Analysis Total . | . . . . . . . . Derelict Logs Recovered . | . . . . . . . . Drone Launches . | . . . . . . . . Drone Recoveries . | . . . . . . . . Exploration | -11 -10 -10 -10 -9 -8 -8 -8 ------------- Run | Yrd Mat Min Exi Min Mat Gar Mat Turns Passed 2002 | 21 153 19 107 106 709 471 416 Spaces Moved 1288 | 34 228 37 211 124 353 197 104 Core 619 | 34 228 37 211 103 . . 6 Treads 200 | . . . . 21 179 . . Legs 460 | . . . . . 174 197 89 Wheels . | . . . . . . . . Hover . | . . . . . . . . Flight 9 | . . . . . . . 9 Fastest Speed 50 | 50 50 50 50 50 120 120 115 Average Speed 108 | 50 50 50 50 68 145 179 187 Slowest Speed 275 | 50 50 50 50 160 160 190 275 Overloaded Moves . | . . . . . . . . Propulsion Burnouts . | . . . . . . . . Robots Hopped . | . . . . . . . . Potential Cave-ins . | . . . . . . . . Cave-ins Triggered . | . . . . . . . . Exploration Rate (%) 32 | 3 55 12 61 34 42 46 7 Regions Visited 7 Branch Regions 3 Pre-discovered Areas . | . . . . . . . . Known Exits Taken 1 | . . . . . 1 . . Unknown Exits Taken 5 | 1 1 1 1 1 . . . Scrap Searched 1 | . . . . 1 . . . Spaces Dug 2 | . . . . . . 2 . Terrain Destroyed 172 | . . . . . 20 152 . Melee . | . . . . . . . . Projectile . | . . . . . . . . AOE 172 | . . . . . 20 152 . Terrain Rammed . | . . . . . . . . Walls Destroyed . | . . . . . . . . Machines Disabled . | . . . . . . . . Actions | -11 -10 -10 -10 -9 -8 -8 -8 --------- Run | Yrd Mat Min Exi Min Mat Gar Mat Total 1712 | 37 243 36 211 139 443 278 325 Wait 263 | . . . . 11 3 30 219 Move 1282 | 33 227 36 210 123 353 196 104 Hop . | . . . . . . . . Pick Up 22 | 2 2 . 1 1 11 5 . Fast Attach 10 | . . . . 1 6 3 . Attach 13 | 2 . . . . 6 4 1 Detach 3 | . . . . . 1 2 . Swap 6 | . . . . . 4 2 . Drop 11 | . . . . . 4 6 1 Fire 96 | . 13 . . 3 55 25 . Melee . | . . . . . . . . Ram 1 | . 1 . . . . . . Kick . | . . . . . . . . Crush . | . . . . . . . . Escape Stasis 5 | . . . . . . 5 . Rewire . | . . . . . . . . Trap . | . . . . . . . . Miscellaneous . | . . . . . . . . Route ------- -11/Scrapyard -10/Materials (discovered 2 exits: [*Mat] / [*Min]) -10/Mines -10/Exiles -9/Mines -8/Materials -8/Garrison -8/Materials History --------- Turn | Location | Event 9 | -11/Scrapyard | Discovered new exit (range 15) 22 | -11/Scrapyard | Entered Materials 52 | -10/Materials | Discovered new exit (range 15) 173 | -10/Materials | Discovered new exit (range 6) 175 | -10/Materials | Entered Mines 192 | -10/Mines | Deemed a non-threat by the Exiles lab entrance 192 | -10/Mines | Discovered new exit (range 5) 194 | -10/Mines | Entered Exiles 207 | -10/Exiles | Met 8R-AWN 216 | -10/Exiles | Met EX-HEX 229 | -10/Exiles | Met EX-BIN 236 | -10/Exiles | Aligned with FarCom system 237 | -10/Exiles | Given EX-Vault access code 249 | -10/Exiles | Opened EX-Vault 252 | -10/Exiles | Found YOLO Cannon 263 | -10/Exiles | Warned to stay clear of 0b10 Research branches 278 | -10/Exiles | Met EX-DEC 296 | -10/Exiles | Discovered new exit (range 10) 301 | -10/Exiles | Left Exiles lab with YOLO Cannon 301 | -10/Exiles | Entered Mines 314 | -9/Mines | Build established: Mutant 326 | -9/Mines | Received a Rocket Launcher from a helpful Derelict 356 | -9/Mines | Assisted by bots powering up and referring to "LRC-V3" 389 | -9/Mines | Discovered new exit (range 9) 407 | -9/Mines | Entered Materials 407 | -8/Materials | Accompanied by 5 allies 407 | -8/Materials | Evolved 4 slots: Propulsion x2, Utility x2 412 | -8/Materials | Led the pair of lost Derelicts to an unsafe place 737 | -8/Materials | Garrison activated, responded to threat 1116 | -8/Materials | Identified exit to Garrison 1116 | -8/Materials | Entered Garrison 1234 | -8/Garrison | Triggered checkpoint 1316 | -8/Garrison | Triggered checkpoint 1331 | -8/Garrison | Core integrity fell below 50% 1367 | -8/Garrison | Lost 4 parts (1p1n1u1w) 1404 | -8/Garrison | Rescued a captive Derelict 1474 | -8/Garrison | Phase Generator disabled 1493 | -8/Garrison | Core integrity fell below 20% 1561 | -8/Garrison | Discovered new exit (range 15) 1587 | -8/Garrison | Entered Materials 2003 | -8/Materials | Destroyed by G-47 Trooper with Particle Gun Last Messages --------------- Connecting with Terminal... >>Trojan(Botnet) Trojan loaded successfully. Testing... Terminal linked with 0 systems. Awaiting botnet instructions. >>Force(Sabotage) SYSTEM_VULNERABLE[Fusion Modulator] NETWORK_OVERLOAD_FAIL ALERT: Suspicious activity at Terminal M007. Dispatching Investigation squad. System corrupted: Component data lost. Critical hit (Burn: +37). System corrupted: Energy discharge (-74). Carbon-fiber Leg destroyed. Critical hit (Burn: +37). Missile Launcher destroyed. Dropped Fission Core. System corrupted: Energy discharge (-29). Cesium-ion Thruster destroyed. Map ----- +----------------------------------------------------+ | ???????????????????????????????????? | | ???????????????????????????????????? | | ???????????????????????????????????? | | ???????????????????????????????????? | | ???????????????????????????????????? | | ???????????????????????????????????? | | ???????????????????????????????????? | | ???###########?????????????????????? | | ???# #?????????????????????? | | ???# #???#######+#####?????? | | ???# """ """ #???# ?????? | | ???# """ """ #???#""" """ """?????? | | ???# """ """ #???#"R """ ""??????? | | ???# #???#""" """ ????????? | | ???# #???# ??????????? | | ???# #???? !????????????? | | ????####+#####???###+###???????????? | | ?????# ####### #???????????? | | ?????# #???????????? | | ?????# " ] T #???????????? | | ?????# #???????????? | | ?????# ####### #???????????? | | ?????## ##############???????????? | | ??????# # #???????????????? | | ??????# # """ #???????????????? | | ??????# ;@ *""" #???????????????? | | ??????# # """ #???????????????? | | ??????# # g #???????????????? | | ??????# # g = #???????????????? | | ??????##### #??????Y????????? | | ??????????# "Y" #???????????????? | | ??????????# """ #???????????????? | | ??????????##########???????????????? | | ???????????????????????????????????? | | ???????????????????????????????????? | | ???????????????????????????????????? | | ???????????????????????????????????? | | ???????????????????????????????????? | | ???????????????????????????????????? | | ???????????????????????????????????? | | ???????????????????????????????????? | | ???????????????????????????????????? | | ???????????????????????????????????? | | ???????????????????????????????????? | | ???????????????????????????????????? | | | | | | | | | | | +----------------------------------------------------+ Best States ------------- Heat Dissipation 75 Energy Generation 18 Energy Capacity 310 Matter Stores 300 Matter Capacity 300 Sight Range 20 Terrain Scan Density 10 Evasion (%) 55 Recoil Reduction 1 Authchip Count 3 Item Schematics ----------------- None Robot Schematics ------------------ None Fabricated ------------ Nothing Repaired ---------- Nothing Studied --------- None Alien Tech Used ----------------- None Achievements -------------- None Challenges ------------ None Game ------ Seed TractorTechRedirector Manual? 0 Play Time 00:16:44 Cumulative 261.7 hours Start 2026.04.11 @ 19:04:21 End 2026.04.11 @ 19:21:58 Sessions 1 Manual Loads 0 Difficulty Rogue Special Mode None Game No. 695 Rogue 693 Adventurer 2 Explorer 0 Win Type - Total 0 Types 0/0/0/0/0/0/0/0/0/0 Lore% 67 Gallery% 63 Achievement% 43 Wizard Run 0 Options --------- Layout 2 ASCII 0 Keyboard 0 Movement Mouse Keybinds 0 Fullscreen 1 Font 24/Smallcaps Map View 50x44 Zoom Use 0% Tactical HUD 0 Map Filters NONE Filters NONE Steam 1 RUN: ce63cc08-9ac9-42e8-9210-9d31b835a3b0